Cogmind - Beta 13 *** ADVENTURER MODE // 2024.07.22 @ 21:41:15 Player: Jefffff Result: Destroyed by G-34 Mercenary with Small Laser Performance ------------- Evolutions (1) 500 Regions Visited (3) 600 Robots Destroyed (54) 270 Value Destroyed (932) 932 Prototype IDs (2) 40 Alien Tech Used (0) 0 Bonus (0) 0 TOTAL SCORE: 2342 Bonus ------- None Cogmind --------- Core Integrity 0/400 Matter 300/300 Energy 100/100 System Corruption 0% Temperature Cool (6) Movement Core (500) Ox9 Location -9/Materials Parts ------- > --- POWER (1) -------- (None) > --- PROPULSION (2) --- (None) > --- UTILITY (4) ------ Large Storage Unit Targeting Computer Core Shielding Core Shielding > --- WEAPON (2) ------- Heavy Hammer Axe > --- INVENTORY (15) --- Light Nuclear Core Aluminum Leg Aluminum Leg Aluminum Leg Aluminum Leg Aluminum Leg Aluminum Leg Carbon-fiber Leg Advanced Visual Processing Unit Experimental Sensor Array Improved Terrain Scanner Core Shielding Heavy Assault Rifle Improved Datajack Mining Laser Peak State ------------ > --- POWER ------------ Light Angular Momentum Engine > --- PROPULSION ------- Carbon-fiber Leg Titanium Leg > --- UTILITY ---------- Medium Storage Unit Targeting Computer Core Shielding Core Shielding > --- WEAPON ----------- Beam Rifle Heavy Hammer > --- INVENTORY -------- Armored Treads Carbon-fiber Leg Advanced Visual Processing Unit Experimental Sensor Array Improved Terrain Scanner Core Shielding Autogun Improved Datajack Mining Laser Axe [Rating: 22] Favorites ----------- Power Light Ion Engine Engine Light Ion Engine Propulsion Wheel Treads Armored Treads Leg Titanium Leg Wheel Wheel Utility Medium Storage Unit Storage Medium Storage Unit Processor Targeting Computer Protection Core Shielding Weapon EM Shotgun Energy Gun EM Shotgun Impact Weapon Heavy Hammer Slashing Weapon Axe Build | -11 -10 -10 -9 ------- Run | Yrd Mat Min Mat Slots Evolved 2 | . . . 2 Power . | . . . . Propulsion . | . . . . Utility 2 | . . . 2 Weapon . | . . . . Parts Attached 38 | 6 17 4 11 Power 6 | 1 2 1 2 Engine 6 | 1 2 1 2 Core . | . . . . Reactor . | . . . . Propulsion 13 | 2 6 2 3 Treads 3 | . . 1 2 Leg 5 | 2 1 1 1 Wheel 5 | . 5 . . Hover . | . . . . Flight . | . . . . Utility 7 | 1 2 . 4 Device . | . . . . Storage 3 | 1 1 . 1 Processor 1 | . 1 . . Hackware . | . . . . Protection 3 | . . . 3 Artifact . | . . . . Weapon 12 | 2 7 1 2 Energy Gun 10 | 2 7 . 1 Energy Cannon . | . . . . Ballistic Gun . | . . . . Ballistic Cannon . | . . . . Launcher . | . . . . Special Weapon . | . . . . Impact Weapon 1 | . . 1 . Slashing Weapon 1 | . . . 1 Piercing Weapon . | . . . . Special Melee Weapon . | . . . . Unidentified Prototypes . | . . . . Parts Lost 9 | . 1 1 7 Power 2 | . . . 2 Propulsion 5 | . 1 . 4 Utility . | . . . . Weapon 2 | . . 1 1 Highest Loss Streak 4 | . 1 1 4 To Critical Strikes . | . . . . Average Slot Usage (%) 96 | . 93 99 96 Engine 12 | . 13 14 8 Treads 6 | . . 10 12 Leg 9 | . 8 10 8 Wheel 10 | . 18 6 . Storage 13 | . 14 14 11 Processor 11 | . 9 14 11 Protection 4 | . . . 22 Energy Gun 19 | . 27 17 5 Impact Weapon 5 | . . 10 11 Slashing Weapon 1 | . . . 5 Naked Turns . | . . . . Heaviest Build 33 | 14 21 19 33 Greatest Support 40 | 20 20 20 40 Greatest Overweight (x) 9 | . 1 1 9 Average Overweight (x) . | . . . . Largest Inventory Capacity 15 | 8 10 10 15 Average Capacity 10 | 7 9 10 11 Most Carried 15 | 4 10 10 15 Average Carried 8 | 1 8 9 9 Final Capacity 15 | 8 10 10 15 Final Carried 15 | 2 10 10 15 Class Distribution -------------------- 100% | Mutant Dominant Class ---------------- Mutant | -10/Materials Mutant | -10/Mines Mutant | -9/Materials Resources | -11 -10 -10 -9 ----------- Run | Yrd Mat Min Mat Matter Collected 575 | 260 170 35 110 Remotely . | . . . . Salvage Created 1779 | 78 901 78 722 Parts 106 | 3 64 5 34 Haulers Intercepted 3 | . 2 . 1 Recyclers Shooed 2 | . 2 . . Parts Field Recycled . | . . . . Retrieved Matter . | . . . . Parts Self-Destructed . | . . . . Prevented . | . . . . Kills | -11 -10 -10 -9 ------- Run | Yrd Mat Min Mat Combat Hostiles Destroyed 31 | . 11 3 17 Melee 14 | . . . 14 Guns 15 | . 10 2 3 AOE 1 | . 1 . . Classes Destroyed 9 | 2 6 . 1 Worker 8 | . 6 1 1 Builder 2 | . 2 . . Tunneler 4 | 1 3 . . Hauler 3 | . 2 . 1 Recycler 3 | 1 2 . . Watcher 3 | . 3 . . Swarmer 13 | . 6 3 4 Grunt 15 | . 5 . 10 Sentry 3 | . . . 3 Best Kill Streak 11 | 2 11 2 8 Combat Bots Only 8 | . 8 2 8 Max Kills in Single Turn 2 | 1 2 1 1 Gunslinging . | . . . . Exploded 1 | . 1 . . Melee 1 | . . . 1 Uniques/NPCs Destroyed . | . . . . Combat | -11 -10 -10 -9 -------- Run | Yrd Mat Min Mat Hostile Shots Fired 275 | . 35 6 234 Missed 60 | . 8 . 52 Damage Taken 1934 | . 317 55 1562 Core 443 | . 33 4 406 Absorbed by Shields . | . . . . Redirected to Shielding 66 | . . . 66 Ignored by Resistances 600 | . 97 18 485 Regen/Repaired (Parts) 14 | . 14 . . Core Remaining (%) 92 | 100 . 85 . Volleys Fired 69 | 3 45 4 17 Largest 2 | 2 2 2 1 Hottest 90 | 80 90 90 56 Shots Fired 120 | 6 90 7 17 Gun 120 | 6 90 7 17 Cannon . | . . . . Launcher . | . . . . Special . | . . . . Kinetic . | . . . . Thermal 13 | . . . 13 Explosive . | . . . . Electromagnetic 107 | 6 90 7 4 Robot Hit Streak 34 | 4 34 4 16 Robot Miss Streak 2 | . 2 1 2 Penetration Max . | . . . . Secondary Targets 3 | . 2 1 . Max Gunslinging Chain 1 | . 1 1 . Shots Hit Robots 135 | 4 67 8 56 Core Hits 63 | 3 38 3 19 Critical Kills . | . . . . Critical Parts Destroyed 1 | . . 1 . Critical Strikes 3 | . . 1 2 Smash 1 | . . 1 . Sever 2 | . . . 2 Melee Attacks 52 | . . 2 50 Impact 15 | . . 2 13 Slashing 37 | . . . 37 Piercing . | . . . . Sneak Attacks 2 | . . 1 1 Combat Hostiles . | . . . . Follow-up Attacks 6 | . . . 6 Damage Inflicted 3413 | 52 1362 180 1819 Guns 1398 | 52 1067 66 213 Cannons . | . . . . Explosions 295 | . 295 . . Melee 1720 | . . 114 1606 Ramming . | . . . . Kinetic . | . . . . Thermal 451 | . 295 . 156 Explosive . | . . . . Electromagnetic 1242 | 52 1067 66 57 Impact 500 | . . 114 386 Slashing 1220 | . . . 1220 Piercing . | . . . . Highest Corruption . | . . . . Average Corruption . | . . . . Corruption Purged . | . . . . Corruption Blocked . | . . . . Overload Shots . | . . . . Overflow Damage 273 | . 23 74 176 Projectiles . | . . . . Explosions 23 | . 23 . . Melee 250 | . . 74 176 Knockbacks 2 | . . 1 1 Impact 2 | . . 1 1 Kinetic . | . . . . Secondary . | . . . . Self-Inflicted Damage 88 | . 88 . . Shots 4 | . 4 . . Rammed . | . . . . Targets Rammed . | . . . . Kicked . | . . . . Crushed . | . . . . Highest Temperature 213 | 54 213 90 96 Average Temperature 62 | 29 72 41 33 Received Heat Transfer 903 | . 99 . 804 Siege Activations . | . . . . Robots Corrupted 1 | . 1 . . Combat Hostiles . | . . . . Parts Fried 13 | . 9 3 1 Impact Corruptions 8 | . . 4 4 Robots Melted . | . . . . Combat Hostiles . | . . . . Parts Melted 3 | . 1 . 2 Heat Transferred 770 | . 400 . 370 Parts Sabotaged . | . . . . Parts Stolen . | . . . . Parts Stripped . | . . . . Power Chain Reactions 7 | . 7 . . Alert | -11 -10 -10 -9 ------- Run | Yrd Mat Min Mat Peak Influence 338 | 10 338 65 298 Initial 5 | . 5 . . Average 110 | 5 180 28 112 Maximum Alert Level 1 | . 1 . 1 Low Security (%) 76 | 100 53 100 85 Level 1 23 | . 46 . 14 Level 2 . | . . . . Level 3 . | . . . . Level 4 . | . . . . Level 5 . | . . . . High Security . | . . . . Max Security . | . . . . Squads Dispatched 2 | . 1 . 1 Investigation 1 | . 1 . . Extermination . | . . . . Reinforcement 1 | . . . 1 Assault . | . . . . Garrison . | . . . . Intercept . | . . . . Searches Triggered . | . . . . Construction Impeded . | . . . . Haulers Reinforced . | . . . . Active Scanning Responses . | . . . . Cargo Convoy Interrupts . | . . . . Stealth | -11 -10 -10 -9 --------- Run | Yrd Mat Min Mat Distress Signals 3 | . 2 . 1 Communications Jammed . | . . . . Distress Signals . | . . . . Times Spotted 50 | . 19 4 27 Peak Tracking Total 8 | . 7 3 8 Tactical Retreats 6 | . 2 1 3 Traps | -11 -10 -10 -9 ------- Run | Yrd Mat Min Mat Traps Triggered 5 | . 4 1 . Indirectly . | . . . . Trap Hack Attempts . | . . . . Triggered . | . . . . Disarmed . | . . . . Reprogrammed . | . . . . Reused . | . . . . Traps Extracted . | . . . . Installed . | . . . . Triggered . | . . . . Machines | -11 -10 -10 -9 ---------- Run | Yrd Mat Min Mat Machines Disabled 1 | . 1 . . Max in Single Turn 1 | . 1 . . Machines Repaired . | . . . . Machines Dismantled . | . . . . Machines Sabotaged . | . . . . Overloaded Fab Kills . | . . . . Hacking | -11 -10 -10 -9 --------- Run | Yrd Mat Min Mat Machines Accessed 10 | . 8 1 1 Terminals 8 | . 7 . 1 Fabricators . | . . . . Repair Stations 1 | . 1 . . Recycling Units . | . . . . Scanalyzers . | . . . . Garrison Access . | . . . . Total Hacks 30 | . 26 1 3 Successful 21 | . 18 1 2 Failed 9 | . 8 . 1 Catastrophic 2 | . 2 . . Database Lockouts . | . . . . Manual 29 | . 26 . 3 Terminals 26 | . 23 . 3 Fabricators . | . . . . Repair Stations 3 | . 3 . . Recycling Units . | . . . . Scanalyzers . | . . . . Garrison Access . | . . . . Terminal Hacks 7 | . 6 1 . Part Schematic 1 | . 1 . . Robot Analysis 2 | . 2 . . Prototype ID Bank 1 | . 1 . . Open Door 1 | . . 1 . Branch Access Points 1 | . 1 . . Terminal Index 1 | . 1 . . Fabricator Hacks . | . . . . Repair Station Hacks 2 | . 2 . . Scan Component 1 | . 1 . . Repair 1 | . 1 . . Recycling Unit Hacks . | . . . . Scanalyzer . | . . . . Garrison Access Hacks . | . . . . Unauthorized Hacks 12 | . 10 . 2 Terminals 12 | . 10 . 2 Track 1 | . 1 . . Assimilate 1 | . 1 . . Botnet 7 | . 6 . 1 Operators 3 | . 2 . 1 Fabricators . | . . . . Repair Stations . | . . . . Recycling Units . | . . . . Scanalyzers . | . . . . Garrison Access . | . . . . Data Cores Recovered . | . . . . Used . | . . . . Hacking Detections 8 | . 7 . 1 Full Trace Events . | . . . . Feedback Events . | . . . . Feedback Blocked . | . . . . Robot Schematics Acquired . | . . . . Robots Built . | . . . . Authchips . | . . . . Time . | . . . . Total Robot Build Rating . | . . . . Part Schematics Acquired 1 | . 1 . . Parts Built . | . . . . Authchips . | . . . . Time . | . . . . Total Part Build Rating . | . . . . Parts Repaired 1 | . 1 . . Time 32 | . 32 . . Parts Recycled . | . . . . Recycled Matter . | . . . . Retrieved Matter . | . . . . Retrieved Components . | . . . . Parts Scanalyzed . | . . . . Part Schematics Acquired . | . . . . Parts Damaged . | . . . . Bothacking | -11 -10 -10 -9 ------------ Run | Yrd Mat Min Mat Used RIF Installer . | . . . . Robots Hacked . | . . . . Non-combat . | . . . . Combat . | . . . . Robot Hacks Applied . | . . . . Relay Couplers Released . | . . . . Fabnet Peak Effective % . | . . . . Robots Rewired . | . . . . Allies Hacked . | . . . . Hacks Repelled . | . . . . Allies | -11 -10 -10 -9 -------- Run | Yrd Mat Min Mat Total Allies . | . . . . Largest Group . | . . . . Highest-Rated Group . | . . . . Highest-Rated Ally . | . . . . Total Orders . | . . . . Ally Attacks . | . . . . Total Damage . | . . . . Kills . | . . . . Allies Corrupted . | . . . . Allies Melted . | . . . . Intel | -11 -10 -10 -9 ------- Run | Yrd Mat Min Mat Robot Analysis Total 2 | . 2 . . Derelict Logs Recovered 1 | . . 1 . Drone Launches . | . . . . Drone Recoveries . | . . . . Exploration | -11 -10 -10 -9 ------------- Run | Yrd Mat Min Mat Turns Passed 2857 | 88 1236 955 578 Spaces Moved 1997 | 62 1094 622 219 Core 15 | 14 . . 1 Treads 540 | . . 384 156 Legs 330 | 48 210 10 62 Wheels 1112 | . 884 228 . Hover . | . . . . Flight . | . . . . Fastest Speed 50 | 50 80 80 125 Average Speed 116 | 104 91 137 182 Slowest Speed 500 | 120 190 200 500 Overloaded Moves . | . . . . Propulsion Burnouts . | . . . . Robots Hopped . | . . . . Cave-ins Triggered . | . . . . Exploration Rate (%) 53 | 4 89 99 20 Regions Visited 3 Branch Regions 1 Pre-discovered Areas . | . . . . Known Exits Taken 1 | . 1 . . Unknown Exits Taken 2 | 1 . 1 . Scrap Searched 1 | . . 1 . Spaces Dug . | . . . . Terrain Destroyed 26 | . 26 . . Melee . | . . . . Projectile . | . . . . AOE 26 | . 26 . . Terrain Rammed . | . . . . Walls Destroyed . | . . . . Machines Disabled . | . . . . Actions | -11 -10 -10 -9 --------- Run | Yrd Mat Min Mat Total 2349 | 80 1246 715 308 Wait 125 | . 53 72 . Move 1994 | 61 1093 621 219 Hop . | . . . . Pick Up 48 | 9 20 5 14 Fast Attach 12 | . 9 2 1 Attach 13 | 6 1 1 5 Detach . | . . . . Swap 13 | . 7 1 5 Drop 32 | 1 18 7 6 Fire 69 | 3 45 4 17 Melee 43 | . . 2 41 Ram . | . . . . Kick . | . . . . Crush . | . . . . Escape Stasis . | . . . . Rewire . | . . . . Trap . | . . . . Miscellaneous . | . . . . Route ------- -11/Scrapyard -10/Materials (discovered 5 exits: *Mat x3 / *Min / [*Sub]) -10/Mines (discovered 2 exits: *Mat x2) -9/Materials History --------- Turn | Location | Event 3 | -11/Scrapyard | Discovered new exit (range 15) 89 | -11/Scrapyard | Entered Materials 112 | -10/Materials | Identified exit to Mines 237 | -10/Materials | Destroyed 8 combat bots 295 | -10/Materials | Discovered new exit (range 4) 300 | -10/Materials | Build established: Mutant 547 | -10/Materials | Repaired EM Shotgun 595 | -10/Materials | Discovered new exit (range 7) 690 | -10/Materials | Discovered new exit (range 8) 1098 | -10/Materials | Discovered new exit (range 14) 1325 | -10/Materials | Entered Mines 1330 | -10/Mines | Learned Materials stockpile data 1366 | -10/Mines | Found a damaged Exp. Sensor Array with a note attached 1368 | -10/Mines | Found Prototype Device 1456 | -10/Mines | Discovered new exit (range 13) 1511 | -10/Mines | Met a Derelict who couldn't figure out how to use a Trap Extractor 1627 | -10/Mines | Discovered new exit (range 9) 2280 | -10/Mines | Entered Materials 2280 | -9/Materials | Evolved 2 slots: Utility x2 2598 | -9/Materials | Core integrity fell below 50% 2650 | -9/Materials | Lost 4 parts (1p2n1w) 2672 | -9/Materials | Destroyed 8 combat bots 2753 | -9/Materials | Core integrity fell below 20% 2858 | -9/Materials | Destroyed by G-34 Mercenary with Small Laser Last Messages --------------- SECURING TERMINAL." 02825_ Destroyed Heat Sink. 02827_ ALERT: Hostiles spotted, dispatching reinforcements to Terminal M004. 02828_ Ion Engine destroyed. 02834_ Destroyed Heat Sink. 02834_ W-16 Scout distress signal alerts nearby ally. 02837_ Y-45 Defender heat damages Lgt. Armor Plating. 02842_ Y-45 Defender heat short circuits Imp. Ion Engine. 02845_ Broken Imp. Ion Engine melted. 02845_ Y-45 Defender destroyed. 02849_ G-34 Mercenary destroyed. 02850_ Arm. Treads destroyed. 02850_ Lgt. Treads destroyed. 02852_ Hvy. Hammer follow-up attack on G-34 Mercenary. 02852_ G-34 Mercenary destroyed. Map ----- +----------------------------------------------------+ | ??????????????????????????? #%[#??????# | | ????????????????????????# ! ??# ######## | | ????????###+####????????#########????#%[ | | ????????? #?????????????????????#!% | | ?????????? #?????????????????????#[=######## | | ??????????? #?????????????????????#%%## # | | ???????????# #???????????????????? + ## """ + | | ???????????# #???????????????!??? # ## """ # | | ???????????# #??????????????????#### ## """ # | | ???????????# ###################### # ?# | | ???????????# % !# ?# | | ???????????#= % # ??# | | ???????????#% *###################### ####### | | ???????????#=[%##############???????###### # | | ???????????# # """ """ #????????????#""" # | | ???????????# # """ """ #????????????#""" # | | ???????????# + """ """ #????????????#""" + | | ???????????# # #????????????#""" #!* | | ???????????# # #????????????#""" #%% | | ???????????# ##########+###????????????# #=% | | ??????????# ####### #????????????# #%* | | ??????????# g #####????????# #[! | | ?????????? T +????????# +][ | | ????????? # #####????????# #%[ | | ????????### #######=!% #????????????# #[[ | | ??????????### ###?????##%@=##????????????#######[! | | ????????????# ?????????#*! #???????? ####### | | ????????????#+?????????#g #????????? + * | | ????????????? ?????????# #?????????????#### % | | ????????????? ????????? ##########+#######+# ! | | ??????????????????????? # # | | ?????????????????????? # + = | | ?????????????????????? # #### | | ????????????????????? u + #??? | | ?????????????????????""""" # #??? | | ???????????????????? """"" # #??? | | ???????????????????? ?"""" ########### | | ????????????????????? "T" | | ????????????????????? | | ?????????????????????? | | ???????????????????????#######+########+##### ## | | ???????????????????????????? ??????????????# #? | | ???????????????????????????? ???????????????# #? | | ????????????????????????????????????????????# #? | | ????????????????????????????????????????????# #? | | ????????????????o???????????????????????????# #? | | ????????????????????????????????????????????# #? | | ????????????????????????????????????????????# #? | | ????????????????????????????????????????????# #? | | ????????????????????????????????????????????# +? | +----------------------------------------------------+ Best States ------------- Heat Dissipation 28 Energy Generation 18 Energy Capacity 250 Matter Stores 300 Matter Capacity 300 Sight Range 16 Terrain Scan Density 10 Resistance: KI 20 Resistance: TH 20 Resistance: EX 20 Resistance: EM 20 Resistance: I 20 Resistance: S 20 Resistance: P 20 Core Shielding 20 Evasion (%) 55 Targeting Accuracy 5 Recoil Reduction 2 Offensive Hacking 10 Item Schematics ----------------- Lgt. Treads | -10/Materials | Hacked Robot Schematics ------------------ None Fabricated ------------ Nothing Alien Tech Used ----------------- None Achievements -------------- None Challenges ------------ None Game ------ Seed TachyonBackupMantle Manual? 0 Play Time 00:22:13 Cumulative 60.4 hours Start 2024.07.22 @ 21:20:13 End 2024.07.22 @ 21:41:15 Sessions 1 Manual Loads 0 Difficulty Adventurer Special Mode None Game No. 92 Rogue 0 Adventurer 92 Explorer 0 Win Type - Total 0 Types 0/0/0/0/0/0/0/0/0 Lore% 43 Gallery% 41 Achievement% 32 Wizard Run 0 Options --------- Layout 2 ASCII 0 Keyboard 0 Movement Mouse Keybinds 0 Fullscreen 2 Font 48/Smallcaps Map View 50x44 Zoom Use 0% Tactical HUD 1 Map Filters NONE Filters NONE Steam 1 RUN: 469c026d-2045-4347-bcf4-15b9717a5859